fUST/lending_fUST_20240202
["ID","MTS","AMOUNT","RATE_DAILY","PERIOD"]
[313151820,1706821222590,150.5,0.0002887,61]
[313151821,1706821223015,216.58,0.0002886,61]
[313151876,1706821831902,-155.67374929,0.00020247,2]
[313151877,1706821831912,-1486.42294619,0.00021386,2]
[313151879,1706821831922,-1018.0,0.00021387,2]
[313151881,1706821831931,-3040.33009883,0.00022263,2]
[313151883,1706821831940,-1007.44122076,0.00022559,2]
[313151885,1706821831952,-1099.78894864,0.00022559,2]
[313151888,1706821831962,-18900.2625012,0.00022561,2]
[313151892,1706821831974,-1599.84205229,0.00022561,2]
[313152331,1706821844298,-29534.29923831,0.00022561,2]
[313152334,1706821844307,-215.60591,0.00023014,2]
[313152337,1706821844316,-206.6393321,0.00024897,2]
[313152340,1706821844325,-4498.85,0.0002499,3]
[313152343,1706821844334,-16624.18171854,0.00025,2]
[313152345,1706821844343,-7137.1390739,0.00025,2]
[313152348,1706821844352,-534.58917942,0.00025,2]
[313152351,1706821844362,-4732.83381239,0.00025,2]
[313152354,1706821844371,-1830.14346345,0.00025,2]
[313152356,1706821844380,-311.755237,0.00025541,2]
[313152357,1706821844390,-199.6652776,0.00026027,2]
[313152358,1706821844399,-153.0,0.00026027,2]
[313152359,1706821844408,-199.6652776,0.00026027,2]
[313152360,1706821844417,-631.52109842,0.00026302,2]
[313152361,1706821844426,-1694.49354025,0.00026456,2]
[313152362,1706821844436,-153.0,0.00026849,2]
[313152363,1706821844445,-153.0,0.00026849,2]
[313152364,1706821844454,-153.0,0.00026849,2]
[313152365,1706821844463,-153.0,0.00026849,2]
[313152366,1706821844473,-153.0,0.00026849,2]
[313152367,1706821844483,-3749.05,0.00026986,3]
[313152368,1706821844491,-222.74493916,0.00026996,2]
[313152369,1706821844500,-520.94949373,0.00026996,2]
[313152370,1706821844511,-12041.28552309,0.00026996,2]
[313152371,1706821844520,-709.01853063,0.00026996,2]
[313152372,1706821844529,-3451.74620064,0.00026996,2]
[313152373,1706821844538,-6350.36127411,0.00026997,2]
[313152374,1706821844549,-47216.47538514,0.00026998,2]
[313152375,1706821844563,-2970.67572934,0.00026998,2]
[313152376,1706821844579,-1052.84888023,0.00026998,2]
[313152386,1706821845959,-183.06250546,0.00026848,4]
[313152387,1706821845968,-1486.42294619,0.00026996,2]
[313152388,1706821845978,-1120.8417143,0.00026996,2]
[313152389,1706821845988,-7099.09884318,0.00026998,2]
[313152390,1706821845999,-435.34359155,0.00026998,2]
[313152393,1706822062451,510.5128344,0.00027397,30]
[313152396,1706822310807,150.0,0.00030043,120]
[313152397,1706822370560,150.0,0.00032941,120]
[313152457,1706823034131,-1486.42294619,0.00021956,2]
[313152459,1706823034140,-154.98450155,0.00022057,2]
[313152461,1706823034149,-154.98450155,0.00022158,2]
[313152463,1706823034159,-575.74965562,0.00022263,2]
[313152465,1706823034168,-180.9035185,0.00022263,2]
[313152466,1706823034177,-208.6110556,0.00022491,2]
[313152468,1706823034186,-9344.07797963,0.00022636,2]
[313152561,1706823041291,-9996.77514081,0.00022636,2]
[313152562,1706823041304,-1773.55532835,0.00022636,2]
[313152563,1706823041316,-937.851625,0.00022636,2]
[313152564,1706823041374,-2847.73992621,0.00022636,2]
[313152565,1706823041387,-256.26712857,0.00023991,2]
[313152566,1706823041396,-452.58656858,0.00023991,2]
[313152567,1706823041405,-193.96567225,0.00023991,2]
[313152568,1706823041414,-202.14138943,0.00024898,2]
[313152569,1706823041423,-253.18931496,0.00025,2]
[313152570,1706823041435,-281.39986446,0.00025,2]
[313152571,1706823041445,-183.06250546,0.000265,4]
[313152572,1706823041454,-7137.1390739,0.00026555,2]
[313152573,1706823041463,-4732.83381239,0.00026556,2]
[313152574,1706823041472,-180.10807367,0.0002657,2]
[313152575,1706823041481,-178.96914648,0.0002667,2]
[313152576,1706823041490,-10722.28751273,0.00026728,2]
[313152577,1706823041500,-6306.48344954,0.00026998,2]
[313152578,1706823041509,-213.72676045,0.00026998,2]
[313152579,1706823041518,-156.7683487,0.00026998,2]
[313152580,1706823041527,-155.03875969,0.00026998,2]
[313152581,1706823041535,-3787.06455632,0.00026998,2]
[313152582,1706823041545,-1640.08201467,0.00026998,2]
[313152583,1706823041554,-155.00465014,0.00026998,2]
[313152584,1706823041565,-155.00155002,0.00026998,2]
[313152585,1706823041574,-155.0,0.00026998,2]
[313152586,1706823041585,-332.35091588,0.00027,2]
[313152587,1706823041594,-370.04024356,0.00027,3]
[313152588,1706823041603,-166.0,0.00027,2]
[313152589,1706823041611,-797.0,0.000272,2]
[313152590,1706823041622,-500.0,0.000273,2]
[313152591,1706823041633,-150.0,0.000273,2]
[313152592,1706823041642,-2603.5,0.0002734,3]
[313152593,1706823041650,-3124.2,0.0002735,3]
[313152594,1706823041659,-2000.37244949,0.0002736,2]
[313152595,1706823041669,-237.05167122,0.0002736,2]
[313152596,1706823041679,-983.88631503,0.0002736,2]
[313152597,1706823041688,-2609.88238861,0.00027396,2]
[313152637,1706823043806,-732.02644888,0.00025,2]
[313154816,1706823328391,765.29815726,0.00020031,5]
[313154817,1706823418774,169.676774,0.00019178,2]
[313154818,1706823473476,1111.36041845,0.00019178,2]
[313154819,1706823476484,343.67151097,0.00019178,2]
[313154820,1706823478388,685.29221933,0.00019178,2]
[313154821,1706823478745,234.30303351,0.00019178,2]
[313154822,1706823478926,154.98450155,0.00019178,2]
[313154823,1706823479329,154.98450155,0.00019178,2]
[313154824,1706823482959,154.98450155,0.00019178,2]
[313154825,1706823486891,238.13210429,0.00018319,2]
[313154826,1706823489479,1111.36041845,0.00019178,2]
[313154827,1706823494490,343.67151097,0.00019178,2]
[313154828,1706823494946,154.98450155,0.00019178,2]
[313154829,1706823496392,685.29221933,0.00019178,2]
[313154830,1706823498725,234.30303351,0.00019178,2]
[313154831,1706823498935,172.7246464,0.00019178,2]
[313154832,1706823499329,214.90851036,0.00019178,2]
[313154833,1706823507491,516.4919863,0.00019178,2]
[313154834,1706823514508,343.67151097,0.00019178,2]
[313154835,1706823518394,189.41655896,0.00019178,2]
[313154843,1706823778973,190.60242444,0.00018961,3]
[313154844,1706823783987,190.60242444,0.00018962,3]
[313154845,1706823815511,154.98450155,0.00018962,2]
[313154846,1706823818932,685.29221933,0.00018962,2]
[313154848,1706823827518,218.91232894,0.00018962,2]
[313154849,1706823834939,685.29221933,0.00018962,2]
[313154850,1706823856944,685.29221933,0.00018962,2]
[313154851,1706823874945,551.65678321,0.00018962,2]
[313154852,1706823876188,6637.36487943,0.0001874,2]
[313154866,1706824096483,150.96980604,0.00028993,30]
[313154918,1706824232500,-175.49039698,0.00018716,2]
[313154920,1706824232509,-133.24231482,0.00018717,2]
[313154964,1706824238431,-3194.58296095,0.00018717,2]
[313154966,1706824238442,-589.38631931,0.00018718,2]
[313154968,1706824238451,-905.14866283,0.00018719,2]
[313154970,1706824238460,-154.98450155,0.00018719,2]
[313154972,1706824238469,-278.51621254,0.0001872,2]
[313154974,1706824238479,-18262.63512057,0.0001874,2]
[313154976,1706824238488,-332.65936256,0.00019178,2]
[313154978,1706824238498,-341.94741079,0.00019178,2]
[313154980,1706824238507,-163.537017,0.00019701,2]
[313154982,1706824238516,-166.666666,0.00021918,2]
[313154984,1706824238526,-198.07195518,0.00022,2]
[313154986,1706824238535,-173.48294303,0.00022159,2]
[313154988,1706824238544,-1132.13,0.00022249,3]
[313154990,1706824238554,-2158.89,0.00022249,3]
[313154992,1706824238563,-1799.07,0.00022249,3]
[313154994,1706824238573,-154.98450155,0.00022258,2]
[313154996,1706824238582,-50000.0,0.00022259,2]
[313154998,1706824238591,-17951.95934036,0.00022259,2]
[313155000,1706824238602,-998.7281087,0.00022259,2]
[313155002,1706824238613,-5043.0315871,0.00022259,2]
[313155005,1706824238624,-2272.12038181,0.00022259,2]
[313155279,1706824241738,-742.34321696,0.00018617,2]
[313155282,1706824241751,-643.45033362,0.00018617,2]
[313155284,1706824241762,-1486.42294619,0.00018716,2]
[313155285,1706824241772,-319.80207964,0.00022259,2]
[313155289,1706824241795,-3892.9835901,0.00022259,2]
[313155292,1706824241808,-476.48639649,0.00022259,2]
[313155678,1706824245595,-19044.8885158,0.00022259,2]
[313155680,1706824245605,-13366.71854555,0.00022259,2]
[313155682,1706824245616,-6394.42629612,0.00022259,2]
[313155684,1706824245628,-5053.87988919,0.00022259,2]
[313155774,1706824246404,-17639.07080916,0.00022259,2]
[313155776,1706824246414,-2160.50695205,0.00022259,2]
[313155778,1706824246423,-166.666666,0.00022431,2]
[313155780,1706824246433,-166.666666,0.00022944,2]
[313155782,1706824246442,-173.48294303,0.00023072,2]
[313155784,1706824246451,-151.0,0.00023411,2]
[313155786,1706824246460,-166.666666,0.00023456,2]
[313155789,1706824246469,-166.666666,0.00023969,2]
[313155792,1706824246479,-173.48294303,0.00023985,2]
[313155795,1706824246487,-166.666666,0.00024482,2]
[313155798,1706824246497,-151.0,0.00024563,2]
[313155801,1706824246506,-280.0,0.00024658,2]
[313155804,1706824246515,-200.0,0.00024658,2]
[313155807,1706824246524,-18100.49412413,0.00024896,2]
[313155810,1706824246534,-168.808145,0.00024896,2]
[313155813,1706824246543,-151.0,0.00024896,2]
[313155816,1706824246552,-151.0,0.00024896,2]
[313155818,1706824246561,-233.69882,0.00024896,2]
[313155821,1706824246571,-233.69882,0.00024896,2]
[313155824,1706824246579,-188.0,0.00024896,2]
[313155827,1706824246588,-190.149767,0.00024896,2]
[313155830,1706824246597,-190.149767,0.00024896,2]
[313155833,1706824246606,-151.0,0.00024896,2]
[313155835,1706824246615,-152.035045,0.00024896,2]
[313155838,1706824246624,-173.48294303,0.00024898,2]
[313155841,1706824246633,-20293.07582362,0.00024998,2]
[313155844,1706824246643,-151.0,0.00024998,2]
[313155847,1706824246653,-151.0,0.00024998,2]
[313155850,1706824246662,-233.69882,0.00024998,2]
[313155853,1706824246671,-233.69882,0.00024998,2]
[313155856,1706824246680,-190.149767,0.00024998,2]
[313155859,1706824246689,-190.149767,0.00024998,2]
[313155862,1706824246698,-181.263924,0.00024998,2]
[313155865,1706824246707,-4732.83381239,0.00025,2]
[313155868,1706824246717,-7137.1390739,0.00025,2]
[313155871,1706824246725,-1830.14346345,0.00025,2]
[313155874,1706824246735,-538.13039431,0.00025014,2]
[313155877,1706824246743,-150.0,0.0002524,2]
[313155880,1706824246753,-200.0,0.00025479,2]
[313155883,1706824246762,-151.0,0.00025716,2]
[313155885,1706824246771,-620.57605492,0.00026236,2]
[313155888,1706824246780,-183.06250546,0.000265,4]
[313155891,1706824246789,-6474.90770817,0.00026827,2]
[313155894,1706824246798,-220.370154,0.00026827,2]
[313155897,1706824246807,-233.69882,0.00026827,2]
[313155900,1706824246817,-233.69882,0.00026827,2]
[313155903,1706824246826,-190.149767,0.00026827,2]
[313155906,1706824246835,-190.149767,0.00026827,2]
[313155909,1706824246844,-151.0,0.00026868,2]
[313155912,1706824246854,-332.35091588,0.00027,2]
[313155914,1706824246863,-368.49772643,0.00027396,2]
[313155916,1706824246871,-294.80661636,0.00027397,2]
[313155918,1706824246881,-500.0,0.00027397,2]
[313155921,1706824246889,-500.0,0.00027397,2]
[313155924,1706824246900,-249.85,0.00027397,2]
[313155927,1706824246909,-453.46449264,0.00027397,2]
[313155930,1706824246919,-500.0,0.00027397,2]
[313155933,1706824246928,-500.0,0.00027397,2]
[313155936,1706824246937,-500.0,0.00027397,7]
[313155939,1706824246947,-500.0,0.00027397,2]
[313155942,1706824246956,-500.0,0.00027397,2]
[313155945,1706824246965,-236.6,0.00027397,2]
[313155948,1706824246974,-233.69882,0.00027397,2]
[313155951,1706824246983,-233.69882,0.00027397,2]
[313155954,1706824246992,-185.67845067,0.00027397,2]
[313155957,1706824247001,-358.84,0.00027397,2]
[313155960,1706824247011,-500.0,0.00027397,2]
[313155962,1706824247019,-155.0,0.00027397,2]
[313155967,1706824247028,-377.05791211,0.00027397,2]
[313155970,1706824247049,-190.149767,0.00027397,2]
[313155974,1706824247059,-190.149767,0.00027397,2]
[313155977,1706824247068,-500.0,0.00027397,2]
[313155980,1706824247077,-500.0,0.00027397,2]
[313155983,1706824247086,-1615.86,0.00027397,2]
[313155986,1706824247095,-500.0,0.00027397,2]
[313155990,1706824247107,-2025.62,0.00027397,10]
[313155993,1706824247117,-500.0,0.00027397,2]
[313155996,1706824247126,-365.33,0.00027397,2]
[313155999,1706824247136,-500.0,0.00027397,2]
[313156002,1706824247145,-12008.12,0.00027397,2]
[313156005,1706824247154,-500.0,0.00027397,2]
[313156007,1706824247163,-1000.0,0.00027397,2]
[313156009,1706824247173,-500.0,0.00027397,2]
[313156011,1706824247182,-4121.98,0.00027397,2]
[313156013,1706824247195,-500.0,0.00027397,2]
[313156015,1706824247204,-500.0,0.00027397,2]
[313156017,1706824247214,-150.1,0.00027397,2]
[313156019,1706824247223,-300.0,0.000275,2]
[313156021,1706824247233,-1905.43148423,0.0002752,2]
[313156023,1706824247242,-9144.42974082,0.00027543,4]
[313156025,1706824247253,-620.02880275,0.00027548,2]
[313156027,1706824247263,-150.0,0.0002767,2]
[313156029,1706824247272,-599.65,0.00027671,2]
[313156031,1706824247282,-500.0,0.00027671,2]
[313156033,1706824247294,-500.0,0.00027671,7]
[313156035,1706824247304,-176.81,0.00027671,2]
[313156038,1706824247314,-500.0,0.00027671,2]
[313156040,1706824247324,-233.69882,0.00027671,2]
[313156041,1706824247334,-233.69882,0.00027671,2]
[313156044,1706824247344,-233.69882,0.00027671,2]
[313156046,1706824247353,-233.69882,0.00027671,2]
[313156047,1706824247363,-500.0,0.00027671,2]
[313156050,1706824247372,-190.149767,0.00027671,2]
[313156052,1706824247381,-190.149767,0.00027671,2]
[313156053,1706824247391,-190.149767,0.00027671,2]
[313156056,1706824247401,-190.149767,0.00027671,2]
[313156058,1706824247411,-500.0,0.00027671,2]
[313156060,1706824247421,-500.0,0.00027671,2]
[313156061,1706824247430,-1615.86,0.00027671,2]
[313156063,1706824247440,-500.0,0.00027671,2]
[313156066,1706824247449,-2025.62,0.00027671,10]
[313156068,1706824247458,-500.0,0.00027671,2]
[313156070,1706824247469,-155.74,0.00027671,2]
[313156071,1706824247478,-12008.12,0.00027671,2]
[313156074,1706824247488,-500.0,0.00027671,2]
[313156076,1706824247497,-1000.0,0.00027671,2]
[313156077,1706824247506,-216.57,0.00027671,2]
[313156080,1706824247516,-4121.98,0.00027671,2]
[313156082,1706824247526,-500.0,0.00027671,2]
[313156084,1706824247534,-500.0,0.00027671,2]
[313156086,1706824247543,-4018.69495971,0.00027795,2]
[313156088,1706824247552,-155.02635448,0.00027795,2]
[313156090,1706824247561,-864.10237399,0.00027795,2]
[313156092,1706824247570,-3972.88161015,0.00027796,2]
[313156094,1706824247580,-9950.40162057,0.00027797,2]
[313156096,1706824247589,-1261.25015974,0.00027797,2]
[313156098,1706824247598,-426.44750157,0.00027797,2]
[313156100,1706824247608,-233.69882,0.00027797,2]
[313156102,1706824247618,-233.69882,0.00027797,2]
[313156104,1706824247627,-190.149767,0.00027797,2]
[313156106,1706824247637,-190.149767,0.00027797,2]
[313156108,1706824247646,-4819.97769138,0.00027798,2]
[313156110,1706824247654,-155.14515717,0.00027798,2]
[313156112,1706824247663,-176.86265737,0.00027798,2]
[313156114,1706824247673,-155.2596133,0.00027798,2]
[313156116,1706824247682,-494.9489016,0.00027798,2]
[313156118,1706824247691,-1264.51072055,0.00027798,2]
[313156120,1706824247700,-7970.65505241,0.00027798,2]
[313156122,1706824247710,-165.98990982,0.00027798,2]
[313156124,1706824247719,-621.74137913,0.00027798,2]
[313156126,1706824247728,-1367.98900414,0.00027798,2]
[313156128,1706824247737,-316.47323329,0.00027798,2]
[313156130,1706824247747,-1198.85411505,0.00027798,2]
[313156132,1706824247756,-178.74538316,0.00027798,2]
[313156134,1706824247765,-488.62496948,0.00027798,2]
[313156136,1706824247775,-1578.24819686,0.00027798,2]
[313156138,1706824247784,-500.0,0.00027798,2]
[313156140,1706824247793,-156.79522636,0.00027798,2]
[313156142,1706824247803,-309.72125088,0.00027798,2]
[313156144,1706824247812,-1020.35679192,0.00027798,2]
[313156146,1706824247821,-233.69882,0.00027798,2]
[313156148,1706824247831,-233.69882,0.00027798,2]
[313156150,1706824247840,-190.149767,0.00027798,2]
[313156152,1706824247849,-190.149767,0.00027798,2]
[313156154,1706824247859,-18927.35300975,0.00027799,2]
[313156156,1706824247868,-597.93419379,0.00027799,2]
[313156158,1706824247878,-500.0,0.00027799,2]
[313156160,1706824247887,-345.52154236,0.00027799,2]
[313156162,1706824247896,-500.0,0.00027799,2]
[313156164,1706824247906,-386.21245891,0.00027799,2]
[313156166,1706824247916,-500.0,0.00027799,2]
[313156168,1706824247926,-500.0,0.00027799,2]
[313156170,1706824247936,-234.75397049,0.00027799,2]
[313156172,1706824247946,-233.69882,0.00027799,2]
[313156174,1706824247956,-233.69882,0.00027799,2]
[313156176,1706824247966,-190.149767,0.00027799,2]
[313156178,1706824247977,-190.149767,0.00027799,2]
[313156180,1706824247987,-13884.23051937,0.000278,2]
[313156425,1706825438682,-154.98450155,0.00021155,2]
[313156426,1706825438692,-154.98450155,0.00021156,2]
[313156427,1706825438701,-154.98450155,0.00021157,2]
[313156428,1706825438716,-1486.42294619,0.00021158,2]
[313156429,1706825438725,-154.98450155,0.0002116,2]
[313156430,1706825438735,-12968.668624,0.00021169,2]
[313156431,1706825438746,-185.71111237,0.00021899,2]
[313156432,1706825438757,-166.666666,0.00021918,2]
[313156433,1706825438766,-2037.24971516,0.00022,2]
[313156434,1706825438776,-14003.22330434,0.00022312,2]
[313156435,1706825438786,-3416.93416345,0.00022312,2]
[313156436,1706825438795,-1662.17697858,0.00022312,2]
[313156437,1706825438804,-166.666666,0.00024482,2]
[313156438,1706825438813,-1830.14346345,0.00025,2]
[313156439,1706825438823,-534.58917942,0.00025,2]
[313156440,1706825438831,-155.02169857,0.00025448,2]
[313156441,1706825438840,-4732.83381239,0.0002568,2]
[313156442,1706825438849,-7137.1390739,0.00025681,2]
[313156443,1706825438858,-150.0,0.00025698,2]
[313156444,1706825438868,-9144.42974082,0.0002641,4]
[313156445,1706825438877,-183.06250546,0.000265,4]
[313156446,1706825438886,-1053.81,0.00026761,3]
[313156447,1706825438896,-2009.55,0.00026761,3]
[313156448,1706825438905,-1674.63,0.00026761,3]
[313156449,1706825438914,-5000.0,0.00026771,2]
[313156450,1706825438924,-5000.0,0.00026771,2]
[313156451,1706825438933,-5000.0,0.00026771,2]
[313156452,1706825438942,-2539.58,0.00027087,4]
[313156453,1706825438951,-248.22704821,0.00027395,2]
[313156454,1706825438961,-176.78117193,0.00027396,2]
[313156455,1706825438970,-500.0,0.00027397,2]
[313156456,1706825438979,-500.0,0.00027397,2]
[313156457,1706825438988,-500.0,0.00027397,2]
[313156458,1706825438997,-500.0,0.00027397,2]
[313156459,1706825439006,-151.54836891,0.00027397,2]
[313156460,1706825439015,-500.0,0.00027397,7]
[313156461,1706825439025,-500.0,0.00027397,2]
[313156462,1706825439034,-500.0,0.00027397,2]
[313156463,1706825439043,-210.48514981,0.00027397,2]
[313156464,1706825439052,-1856.82,0.00027397,10]
[313156465,1706825439061,-1000.0,0.00027397,2]
[313156466,1706825439070,-500.0,0.00027397,2]
[313156467,1706825439079,-500.0,0.00027397,2]
[313156468,1706825439089,-500.0,0.00027397,2]
[313156469,1706825439097,-500.0,0.00027397,2]
[313156470,1706825439106,-1481.21,0.00027397,2]
[313156471,1706825439116,-500.0,0.00027397,2]
[313156472,1706825439125,-500.0,0.00027397,2]
[313156473,1706825439134,-500.0,0.00027397,2]
[313156474,1706825439142,-155.0,0.00027397,2]
[313156475,1706825439151,-500.0,0.00027397,2]
[313156476,1706825439160,-2310.58635811,0.00027397,2]
[313156527,1706825441725,-689.4019881,0.00027397,2]
[313156536,1706825443563,-8007.45165379,0.00027397,2]
[313156537,1706825443574,-3778.48,0.00027397,2]
[313156538,1706825443584,-500.0,0.00027397,2]
[313156539,1706825443595,-250.89513342,0.00027397,2]
[313156540,1706825443605,-150.1,0.00027397,2]
[313156541,1706825443615,-50000.0,0.00027437,5]
[313156542,1706825443628,-1555.14736511,0.0002752,2]
[313156543,1706825443638,-1395.52,0.00027661,3]
[313156544,1706825443647,-180.69,0.00027671,2]
[313156545,1706825443658,-500.0,0.00027671,7]
[313156546,1706825443667,-231.66,0.00027671,2]
[313156547,1706825443676,-1856.82,0.00027671,10]
[313156548,1706825443686,-1000.0,0.00027671,2]
[313156549,1706825443696,-500.0,0.00027671,2]
[313156550,1706825443707,-1481.21,0.00027671,2]
[313156551,1706825443719,-500.0,0.00027671,2]
[313156552,1706825443729,-500.0,0.00027671,2]
[313156553,1706825443738,-500.0,0.00027671,2]
[313156554,1706825443748,-500.0,0.00027671,2]
[313156555,1706825443757,-11007.44,0.00027671,2]
[313156556,1706825443766,-3778.48,0.00027671,2]
[313156557,1706825443776,-231.78163266,0.00027671,2]
[313156558,1706825443786,-186.94222164,0.00027796,2]
[313156559,1706825443796,-522.41614365,0.00027796,2]
[313156560,1706825443805,-522.0841828,0.00027796,2]
[313156561,1706825443814,-154.98450255,0.00027796,2]
[313156562,1706825443823,-7968.22560607,0.00027797,2]
[313156563,1706825443831,-151.0,0.00027797,2]
[313156564,1706825443840,-200.69533867,0.00027798,2]
[313156565,1706825443850,-555.97053838,0.00027798,2]
[313156566,1706825443859,-19884.40674015,0.00027798,2]
[313156567,1706825443867,-173.15482717,0.00027798,2]
[313156568,1706825443880,-15390.37952808,0.00027798,2]
[313156569,1706825443889,-309.89938513,0.00027798,2]
[313156570,1706825443898,-243.19997644,0.00027798,2]
[313156571,1706825443907,-1580.96149177,0.00027798,2]
[313156572,1706825443916,-252.35653866,0.00027798,2]
[313156573,1706825443925,-151.0,0.00027798,2]
[313156574,1706825443934,-229.299527,0.00027798,2]
[313156575,1706825443943,-698.75429028,0.00027799,2]
[313156576,1706825443953,-175.37275052,0.00027799,2]
[313156577,1706825443962,-798.70393875,0.00027799,2]
[313156578,1706825443970,-20925.73501298,0.00027799,2]
[313156579,1706825443979,-382.19326367,0.00027799,2]
[313156580,1706825443989,-306.98958821,0.000278,3]
[313156581,1706825443998,-3197.9663533,0.000278,2]
[313156582,1706825444007,-2644.0731399,0.000278,2]
[313156583,1706825444016,-280.21405772,0.000278,2]
[313156584,1706825444026,-300.0,0.000278,2]
[313156585,1706825444035,-338.88993322,0.000278,2]
[313156586,1706825444044,-9708.94126362,0.000278,7]
[313156589,1706825446585,-351.10475835,0.000278,7]
[313156601,1706826392658,3945.6454085,0.000332,120]
[313156604,1706826509024,5000.0,0.00031,120]
[313156649,1706826637765,-1486.42294619,0.00022397,2]
[313156650,1706826637775,-309.18616046,0.00022398,2]
[313156651,1706826637786,-6564.43834423,0.00022398,2]
[313156690,1706826643183,-64.00506946,0.00022398,2]
[313156692,1706826643196,-903.74896466,0.00022398,2]
[313156694,1706826643205,-245.75666018,0.00022398,2]
[313156696,1706826643215,-1824.1299111,0.00022398,2]
[313156698,1706826643224,-1095.56741577,0.00023853,2]
[313156700,1706826643236,-23804.43258423,0.00023853,2]
[313156701,1706826643245,-304.482172,0.00023993,2]
[313156704,1706826643255,-1009.5958948,0.00024043,2]
[313156706,1706826643265,-250.0,0.00024277,2]
[313156707,1706826643274,-2830.11475401,0.00024387,2]
[313156724,1706826645769,-169.88524599,0.00024387,2]
[313156725,1706826645779,-1759.02201259,0.00024419,2]
[313156803,1706827832106,-462.228,0.00020734,2]
[313156820,1706827837894,-100.2803789,0.00020734,2]
[313156821,1706827837904,-1486.42294619,0.00020735,2]
[313156822,1706827837914,-154.98450155,0.00020735,4]
[313156823,1706827837924,-166.696548,0.0002074,2]
[313156824,1706827837934,-250.0,0.00020975,2]
[313156825,1706827837944,-7619.0523147,0.00021147,2]
[313156826,1706827837954,-241.065433,0.0002175,2]
[313156827,1706827837963,-1163.0168628,0.00021924,2]
[313156828,1706827837973,-335.5636504,0.00021924,2]
[313156829,1706827837984,-150.0,0.00022287,2]
[313156830,1706827837994,-39.19857665,0.00022412,2]
[313156831,1706827838005,-985.76801125,0.00022412,2]
[313156832,1706827838017,-27996.72615323,0.00022412,2]
[313156833,1706827838027,-6310.28068004,0.0002273,2]
[313156834,1706827838040,-347.44395623,0.0002273,2]
[313156854,1706827842831,-403.5335302,0.0002273,2]
[313156856,1706827842842,-1266.56600852,0.0002273,2]
[313156857,1706827842853,-16572.17582501,0.0002273,2]
[313156858,1706827842862,-868.62642652,0.00024319,2]
[313156859,1706827842871,-1136.99,0.00024399,3]
[313156860,1706827842879,-1367.22501584,0.00024419,2]
[313156862,1706827842944,-1830.74133746,0.00024419,2]
[313156863,1706827842953,-338.88993322,0.00024419,2]
[313156864,1706827842962,-2045.42860215,0.00024419,2]
[313156865,1706827842973,-1799.38181908,0.00024419,2]
[313156866,1706827842984,-281015.56781596,0.00024419,2]
[313156867,1706827842993,-300.0,0.00024419,2]
[313156868,1706827843002,-4732.83381239,0.00025,2]
[313156869,1706827843011,-1830.14346345,0.00025,2]
[313156870,1706827843020,-7137.1390739,0.00025,2]
[313156871,1706827843029,-534.58917942,0.00025,2]
[313156872,1706827843038,-151.0,0.00025759,2]
[313156873,1706827843048,-173.15482717,0.00027,2]
[313156874,1706827843057,-151.0,0.000271,2]
[313156875,1706827843066,-3486.23529972,0.00027242,2]
[313156876,1706827843075,-150.0,0.00027287,2]
[313156877,1706827843083,-155.0,0.00027397,2]
[313156878,1706827843092,-500.0,0.00027397,2]
[313156879,1706827843101,-500.0,0.00027397,7]
[313156880,1706827843111,-516.34308584,0.00027397,2]
[313156881,1706827843120,-1357.77,0.00027397,2]
[313156882,1706827843129,-1702.08,0.00027397,10]
[313156883,1706827843138,-500.0,0.00027397,2]
[313156884,1706827843147,-500.0,0.00027397,2]
[313156885,1706827843157,-500.0,0.00027397,2]
[313156886,1706827843166,-500.0,0.00027397,2]
[313156887,1706827843175,-10090.15,0.00027397,2]
[313156888,1706827843183,-1000.0,0.00027397,2]
[313156889,1706827843192,-3463.61,0.00027397,2]
[313156890,1706827843202,-150.1,0.00027397,2]
[313156891,1706827843211,-620.00144013,0.00027479,2]
[313156892,1706827843220,-288.65985087,0.00027671,2]
[313156893,1706827843229,-500.0,0.00027671,7]